[Event "Titled Tuesday Blitz July 13 2021"]
[White "Nguyen Hong Nhung"]
[Black "Wernberg, Hugo"]
[WhiteFideId "12412201"]
[BlackFideId "1737511"]
[WhiteElo "1661"]
[BlackElo "1940"]
[Result "1-0"]
[Round "06"]
[TimeControl "180+1"]
[Date "2021.07.13"]
[WhiteClock "0:00:24"]
[BlackClock "0:00:02"]

1. e4 {[%clk 0:03:00]}  e5 {[%clk 0:02:59]} 2. Nf3 {[%clk 0:03:00]}  Nc6 {[%clk 0:02:59]} 3. d4 {[%clk 0:03:01]}  exd4 {[%clk 0:02:58]} 4. Nxd4 {[%clk 0:03:02]}  Nf6 {[%clk 0:02:58]} 5. Nc3 {[%clk 0:03:02]}  Bb4 {[%clk 0:02:56]} 6. Nxc6 {[%clk 0:03:02]}  bxc6 {[%clk 0:02:55]} 7. Bd3 {[%clk 0:03:02]}  d5 {[%clk 0:02:55]} 8. exd5 {[%clk 0:03:02]}  O-O {[%clk 0:02:54]} 9. O-O {[%clk 0:03:03]}  cxd5 {[%clk 0:02:53]} 10. h3 {[%clk 0:03:03]}  c6 {[%clk 0:02:50]} 11. Qf3 {[%clk 0:03:03]}  Bd6 {[%clk 0:02:45]} 12. Ne2 {[%clk 0:03:03]}  h6 {[%clk 0:02:34]} 13. b3 {[%clk 0:03:02]}  Be5 {[%clk 0:02:31]} 14. Rb1 {[%clk 0:03:02]}  a5 {[%clk 0:02:20]} 15. Bf4 {[%clk 0:03:02]}  Bxf4 {[%clk 0:02:14]} 16. Nxf4 {[%clk 0:03:03]}  Ba6 {[%clk 0:02:13]} 17. Rfe1 {[%clk 0:02:55]}  Bxd3 {[%clk 0:02:12]} 18. Nxd3 {[%clk 0:02:56]}  Qd6 {[%clk 0:02:10]} 19. Rbd1 {[%clk 0:02:44]}  a4 {[%clk 0:02:05]} 20. Ne5 {[%clk 0:02:29]}  axb3 {[%clk 0:02:03]} 21. axb3 {[%clk 0:02:30]}  Ne4 {[%clk 0:01:58]} 22. Rxe4 {[%clk 0:02:21]}  dxe4 {[%clk 0:01:56]} 23. Rxd6 {[%clk 0:02:19]}  exf3 {[%clk 0:01:55]} 24. Rxc6 {[%clk 0:02:17]}  Ra1+ {[%clk 0:01:52]} 25. Kh2 {[%clk 0:02:17]}  fxg2 {[%clk 0:01:44]} 26. Kxg2 {[%clk 0:02:18]}  Re8 {[%clk 0:01:41]} 27. Rc5 {[%clk 0:02:06]}  f6 {[%clk 0:01:38]} 28. Nf3 {[%clk 0:01:59]}  g5 {[%clk 0:01:33]} 29. Nd4 {[%clk 0:01:49]}  Kf7 {[%clk 0:01:27]} 30. c3 {[%clk 0:01:48]}  Kg6 {[%clk 0:01:22]} 31. b4 {[%clk 0:01:47]}  h5 {[%clk 0:01:21]} 32. b5 {[%clk 0:01:45]}  h4 {[%clk 0:01:21]} 33. Rc6 {[%clk 0:01:39]}  Ree1 {[%clk 0:01:16]} 34. Nf3 {[%clk 0:01:28]}  Rec1 {[%clk 0:00:51]} 35. c4 {[%clk 0:01:27]}  Rab1 {[%clk 0:00:50]} 36. b6 {[%clk 0:01:13]}  Rb4 {[%clk 0:00:46]} 37. Ne5+ {[%clk 0:01:13]}  Kf5 {[%clk 0:00:27]} 38. Nd3 {[%clk 0:01:13]}  Rcxc4 {[%clk 0:00:14]} 39. Rxc4 {[%clk 0:01:08]}  Rxb6 {[%clk 0:00:12]} 40. Rc8 {[%clk 0:00:58]}  Rb3 {[%clk 0:00:10]} 41. Nc5 {[%clk 0:00:55]}  Rc3 {[%clk 0:00:08]} 42. Rc7 {[%clk 0:00:54]}  Ra3 {[%clk 0:00:06]} 43. Rf7 {[%clk 0:00:51]}  Kg6 {[%clk 0:00:05]} 44. Rf8 {[%clk 0:00:49]}  Kg7 {[%clk 0:00:05]} 45. Ne6+ {[%clk 0:00:49]}  Kg6 {[%clk 0:00:05]} 46. Nd4 {[%clk 0:00:46]}  Kg7 {[%clk 0:00:05]} 47. Re8 {[%clk 0:00:42]}  Kg6 {[%clk 0:00:05]} 48. Re6 {[%clk 0:00:42]}  Rd3 {[%clk 0:00:04]} 49. Nf3 {[%clk 0:00:40]}  Kf5 {[%clk 0:00:04]} 50. Ra6 {[%clk 0:00:36]}  g4 {[%clk 0:00:03]} 51. Ra5+ {[%clk 0:00:36]}  Kg6 {[%clk 0:00:03]} 52. Nxh4+ {[%clk 0:00:34]}  Kg7 {[%clk 0:00:02]} 53. hxg4 {[%clk 0:00:35]}  Rb3 {[%clk 0:00:01]} 54. f3 {[%clk 0:00:34]}  Rb4 {[%clk 0:00:01]} 55. Nf5+ {[%clk 0:00:34]}  Kg6 {[%clk 0:00:02]} 56. Kg3 {[%clk 0:00:35]}  Kf7 {[%clk 0:00:01]} 57. Ra7+ {[%clk 0:00:35]}  Ke6 {[%clk 0:00:02]} 58. Re7+ {[%clk 0:00:33]}  Kd5 {[%clk 0:00:03]} 59. Rf7 {[%clk 0:00:33]}  Ke6 {[%clk 0:00:03]} 60. Rf8 {[%clk 0:00:33]}  Rb7 {[%clk 0:00:02]} 61. Re8+ {[%clk 0:00:32]}  Kd5 {[%clk 0:00:02]} 62. f4 {[%clk 0:00:30]}  Rb3+ {[%clk 0:00:02]} 63. Re3 {[%clk 0:00:30]}  Rb1 {[%clk 0:00:02]} 64. Kh4 {[%clk 0:00:27]}  Rh1+ {[%clk 0:00:02]} 65. Rh3 {[%clk 0:00:28]}  Rg1 {[%clk 0:00:01]} 66. Kh5 {[%clk 0:00:28]}  Ke4 {[%clk 0:00:02]} 67. Ng3+ {[%clk 0:00:23]}  Kxf4 {[%clk 0:00:02]} 68. Ne2+ {[%clk 0:00:23]}  Ke5 {[%clk 0:00:02]} 69. Nxg1 {[%clk 0:00:24]}  Ke6 {[%clk 0:00:02]} 70. Kg6 {[%clk 0:00:24]} 1-0


[Site "https://www.chess.com"]

[Event "Titled Tuesday Blitz July 13 2021"]
[White "Nozdrachev, Leonid"]
[Black "Shukhman, Anna"]
[WhiteFideId "24113433"]
[BlackFideId "54180058"]
[WhiteElo "2221"]
[BlackElo "1628"]
[Result "1-0"]
[Round "06"]
[TimeControl "180+1"]
[Date "2021.07.13"]
[WhiteClock "0:01:36"]
[BlackClock "0:00:30"]

1. e4 {[%clk 0:02:54]}  c5 {[%clk 0:02:58]} 2. c3 {[%clk 0:02:54]}  Nf6 {[%clk 0:02:57]} 3. e5 {[%clk 0:02:53]}  Nd5 {[%clk 0:02:57]} 4. d4 {[%clk 0:02:52]}  cxd4 {[%clk 0:02:56]} 5. Nf3 {[%clk 0:02:53]}  d6 {[%clk 0:02:54]} 6. cxd4 {[%clk 0:02:52]}  Nc6 {[%clk 0:02:53]} 7. Bc4 {[%clk 0:02:47]}  e6 {[%clk 0:02:52]} 8. O-O {[%clk 0:02:47]}  Be7 {[%clk 0:02:45]} 9. Qe2 {[%clk 0:02:46]}  O-O {[%clk 0:02:44]} 10. Re1 {[%clk 0:02:44]}  dxe5 {[%clk 0:02:42]} 11. dxe5 {[%clk 0:02:44]}  b6 {[%clk 0:02:26]} 12. Nc3 {[%clk 0:02:42]}  Nxc3 {[%clk 0:02:25]} 13. bxc3 {[%clk 0:02:43]}  Bb7 {[%clk 0:02:25]} 14. Bd3 {[%clk 0:02:28]}  Na5 {[%clk 0:02:18]} 15. Qc2 {[%clk 0:02:26]}  g6 {[%clk 0:02:16]} 16. Bh6 {[%clk 0:02:21]}  Re8 {[%clk 0:02:14]} 17. Bb5 {[%clk 0:02:09]}  Bxf3 {[%clk 0:02:07]} 18. Bxe8 {[%clk 0:02:08]}  Bb7 {[%clk 0:01:36]} 19. Bb5 {[%clk 0:02:03]}  Bxg2 {[%clk 0:01:32]} 20. Rad1 {[%clk 0:01:56]}  Bd5 {[%clk 0:01:29]} 21. c4 {[%clk 0:01:56]}  Rc8 {[%clk 0:01:19]} 22. Qe2 {[%clk 0:01:55]}  Nxc4 {[%clk 0:00:48]} 23. Bxc4 {[%clk 0:01:53]}  Rxc4 {[%clk 0:00:48]} 24. Qxc4 {[%clk 0:01:53]}  Bxc4 {[%clk 0:00:48]} 25. Rxd8+ {[%clk 0:01:53]}  Bxd8 {[%clk 0:00:49]} 26. Rd1 {[%clk 0:01:45]}  Bh4 {[%clk 0:00:47]} 27. Rd7 {[%clk 0:01:39]}  f6 {[%clk 0:00:32]} 28. Rg7+ {[%clk 0:01:36]}  Kh8 {[%clk 0:00:31]} 29. Rc7 {[%clk 0:01:36]}  Kg8 {[%clk 0:00:30]} 1-0


[Site "https://www.chess.com"]

[Event "Titled Tuesday Blitz July 13 2021"]
[White "Obolentseva, Alexandra"]
[Black "Michailov, Matias"]
[WhiteFideId "24153648"]
[BlackFideId "3001571"]
[WhiteElo "2113"]
[BlackElo "2231"]
[Result "0-1"]
[Round "06"]
[TimeControl "180+1"]
[Date "2021.07.13"]
[WhiteClock "0:00:45"]
[BlackClock "0:00:15"]

1. d4 {[%clk 0:03:00]}  Nf6 {[%clk 0:02:59]} 2. c4 {[%clk 0:03:00]}  g6 {[%clk 0:02:59]} 3. Nc3 {[%clk 0:03:01]}  Bg7 {[%clk 0:03:00]} 4. e4 {[%clk 0:02:52]}  d6 {[%clk 0:03:00]} 5. Nf3 {[%clk 0:02:50]}  O-O {[%clk 0:02:59]} 6. Be2 {[%clk 0:02:48]}  e5 {[%clk 0:02:53]} 7. O-O {[%clk 0:02:47]}  Nc6 {[%clk 0:02:50]} 8. d5 {[%clk 0:02:45]}  Ne7 {[%clk 0:02:49]} 9. b4 {[%clk 0:02:38]}  Nh5 {[%clk 0:02:45]} 10. Re1 {[%clk 0:02:37]}  f5 {[%clk 0:02:43]} 11. Ng5 {[%clk 0:02:37]}  Nf6 {[%clk 0:02:43]} 12. Bf3 {[%clk 0:02:36]}  c6 {[%clk 0:02:42]} 13. dxc6 {[%clk 0:02:35]}  bxc6 {[%clk 0:02:35]} 14. exf5 {[%clk 0:02:34]}  gxf5 {[%clk 0:02:27]} 15. b5 {[%clk 0:02:34]}  e4 {[%clk 0:02:27]} 16. Be2 {[%clk 0:02:33]}  d5 {[%clk 0:01:27]} 17. cxd5 {[%clk 0:02:31]}  Nfxd5 {[%clk 0:01:22]} 18. Nxd5 {[%clk 0:02:30]}  cxd5 {[%clk 0:01:21]} 19. Rb1 {[%clk 0:01:56]}  h6 {[%clk 0:01:20]} 20. Nh3 {[%clk 0:01:48]}  d4 {[%clk 0:01:17]} 21. Bc4+ {[%clk 0:01:47]}  Kh7 {[%clk 0:01:17]} 22. Nf4 {[%clk 0:01:46]}  Qd6 {[%clk 0:00:58]} 23. g3 {[%clk 0:01:31]}  Bd7 {[%clk 0:00:53]} 24. Qb3 {[%clk 0:01:29]}  Rac8 {[%clk 0:00:49]} 25. Ba3 {[%clk 0:01:26]}  Qe5 {[%clk 0:00:37]} 26. Nd3 {[%clk 0:01:22]}  Qf6 {[%clk 0:00:37]} 27. Nc5 {[%clk 0:01:22]}  Rfd8 {[%clk 0:00:27]} 28. Nxd7 {[%clk 0:01:19]}  Rxd7 {[%clk 0:00:27]} 29. Be6 {[%clk 0:01:19]}  Rc3 {[%clk 0:00:28]} 30. Bxd7 {[%clk 0:01:19]}  Rxb3 {[%clk 0:00:28]} 31. Rxb3 {[%clk 0:01:19]}  d3 {[%clk 0:00:25]} 32. Bc5 {[%clk 0:01:14]}  Nd5 {[%clk 0:00:24]} 33. f3 {[%clk 0:01:06]}  Qf7 {[%clk 0:00:20]} 34. Bc6 {[%clk 0:01:00]}  d2 {[%clk 0:00:21]} 35. Rd1 {[%clk 0:00:59]}  e3 {[%clk 0:00:21]} 36. Bxd5 {[%clk 0:00:56]}  Qxd5 {[%clk 0:00:22]} 37. Bxe3 {[%clk 0:00:56]}  Qxf3 {[%clk 0:00:22]} 38. Rxd2 {[%clk 0:00:56]}  Qe4 {[%clk 0:00:15]} 39. Bxa7 {[%clk 0:00:54]}  Qe1+ {[%clk 0:00:15]} 40. Kg2 {[%clk 0:00:53]}  Qxd2+ {[%clk 0:00:15]} 41. Kh3 {[%clk 0:00:53]}  Qxa2 {[%clk 0:00:16]} 42. Rf3 {[%clk 0:00:47]}  Qxa7 {[%clk 0:00:14]} 43. Rxf5 {[%clk 0:00:45]}  Kg6 {[%clk 0:00:15]} 0-1


[Site "https://www.chess.com"]

[Event "Titled Tuesday Blitz July 13 2021"]
[White "Pajeken, Jakob Leon"]
[Black "Abdusattorov, Nodirbek"]
[WhiteFideId "12942839"]
[BlackFideId "14204118"]
[WhiteElo "2231"]
[BlackElo "2662"]
[Result "0-1"]
[Round "06"]
[TimeControl "180+1"]
[Date "2021.07.13"]
[WhiteClock "0:00:25"]
[BlackClock "0:01:09"]

1. d4 {[%clk 0:03:00]}  Nf6 {[%clk 0:02:58]} 2. Nf3 {[%clk 0:03:01]}  d5 {[%clk 0:02:58]} 3. Bf4 {[%clk 0:03:00]}  c5 {[%clk 0:02:58]} 4. e3 {[%clk 0:03:00]}  Nc6 {[%clk 0:02:58]} 5. Nbd2 {[%clk 0:03:00]}  Nh5 {[%clk 0:02:56]} 6. Bg5 {[%clk 0:02:52]}  h6 {[%clk 0:02:55]} 7. Bh4 {[%clk 0:02:48]}  g5 {[%clk 0:02:56]} 8. Bg3 {[%clk 0:02:35]}  g4 {[%clk 0:02:46]} 9. Ne5 {[%clk 0:02:32]}  Nxg3 {[%clk 0:02:47]} 10. hxg3 {[%clk 0:02:32]}  Nxe5 {[%clk 0:02:47]} 11. dxe5 {[%clk 0:02:32]}  Bg7 {[%clk 0:02:47]} 12. Bb5+ {[%clk 0:02:11]}  Kf8 {[%clk 0:02:47]} 13. Rh5 {[%clk 0:02:02]}  c4 {[%clk 0:02:41]} 14. c3 {[%clk 0:01:59]}  Qb6 {[%clk 0:02:41]} 15. Ba4 {[%clk 0:01:42]}  Qxb2 {[%clk 0:02:42]} 16. Rc1 {[%clk 0:01:30]}  Be6 {[%clk 0:02:41]} 17. Rb1 {[%clk 0:01:23]}  Qxc3 {[%clk 0:02:38]} 18. Rxb7 {[%clk 0:01:24]}  Bxe5 {[%clk 0:02:37]} 19. Qb1 {[%clk 0:01:18]}  Kg7 {[%clk 0:02:16]} 20. Rxe7 {[%clk 0:01:13]}  Rab8 {[%clk 0:02:15]} 21. Qd1 {[%clk 0:01:13]}  Rb2 {[%clk 0:02:04]} 22. e4 {[%clk 0:00:56]}  Rhb8 {[%clk 0:01:19]} 23. Ke2 {[%clk 0:00:38]}  Rxa2 {[%clk 0:01:12]} 24. Bd7 {[%clk 0:00:33]}  Rbb2 {[%clk 0:01:12]} 25. Rxf7+ {[%clk 0:00:29]}  Bxf7 {[%clk 0:01:09]} 26. Kf1 {[%clk 0:00:25]}  Bxh5 {[%clk 0:01:09]} 0-1


[Site "https://www.chess.com"]

[Event "Titled Tuesday Blitz July 13 2021"]
[White "Patrascu, Catalin-Lucian"]
[Black "Aradhya, Garg"]
[WhiteFideId "1229052"]
[BlackFideId "25006746"]
[WhiteElo "2120"]
[BlackElo "2146"]
[Result "1/2-1/2"]
[Round "06"]
[TimeControl "180+1"]
[Date "2021.07.13"]
[WhiteClock "0:00:02"]
[BlackClock "0:00:40"]

1. e4 {[%clk 0:03:00]}  e5 {[%clk 0:03:00]} 2. Nf3 {[%clk 0:02:59]}  Nc6 {[%clk 0:03:00]} 3. Bb5 {[%clk 0:02:58]}  a6 {[%clk 0:02:59]} 4. Ba4 {[%clk 0:02:58]}  Nf6 {[%clk 0:02:59]} 5. O-O {[%clk 0:02:56]}  b5 {[%clk 0:02:59]} 6. Bb3 {[%clk 0:02:56]}  Bc5 {[%clk 0:02:59]} 7. d3 {[%clk 0:02:55]}  d6 {[%clk 0:02:58]} 8. a3 {[%clk 0:02:49]}  O-O {[%clk 0:02:55]} 9. h3 {[%clk 0:02:42]}  Ne7 {[%clk 0:02:53]} 10. Be3 {[%clk 0:02:36]}  Ba7 {[%clk 0:02:35]} 11. Nc3 {[%clk 0:02:20]}  Ng6 {[%clk 0:02:35]} 12. Nd5 {[%clk 0:01:51]}  Bxe3 {[%clk 0:02:33]} 13. fxe3 {[%clk 0:01:48]}  Nxd5 {[%clk 0:02:29]} 14. Bxd5 {[%clk 0:01:46]}  Rb8 {[%clk 0:02:30]} 15. Qe1 {[%clk 0:01:37]}  Bb7 {[%clk 0:02:26]} 16. Bxb7 {[%clk 0:01:19]}  Rxb7 {[%clk 0:02:27]} 17. Qa5 {[%clk 0:01:19]}  c6 {[%clk 0:02:16]} 18. Qxd8 {[%clk 0:01:05]}  Rxd8 {[%clk 0:02:17]} 19. Nd2 {[%clk 0:01:03]}  Kf8 {[%clk 0:02:14]} 20. b4 {[%clk 0:01:02]}  Ke7 {[%clk 0:02:12]} 21. Nb3 {[%clk 0:01:01]}  Nf8 {[%clk 0:02:12]} 22. a4 {[%clk 0:00:56]}  Ne6 {[%clk 0:02:06]} 23. axb5 {[%clk 0:00:52]}  axb5 {[%clk 0:02:04]} 24. Ra6 {[%clk 0:00:52]}  c5 {[%clk 0:02:04]} 25. Na5 {[%clk 0:00:35]}  Nc7 {[%clk 0:02:03]} 26. Nc6+ {[%clk 0:00:29]}  Ke8 {[%clk 0:02:00]} 27. Nxd8 {[%clk 0:00:28]}  Kxd8 {[%clk 0:02:00]} 28. Rxd6+ {[%clk 0:00:26]}  Ke7 {[%clk 0:01:59]} 29. bxc5 {[%clk 0:00:22]}  Ne6 {[%clk 0:01:59]} 30. c6 {[%clk 0:00:20]}  Rc7 {[%clk 0:01:57]} 31. Rd7+ {[%clk 0:00:19]}  Rxd7 {[%clk 0:01:57]} 32. cxd7 {[%clk 0:00:19]}  f6 {[%clk 0:01:57]} 33. Rb1 {[%clk 0:00:19]}  Nc7 {[%clk 0:01:58]} 34. c4 {[%clk 0:00:17]}  bxc4 {[%clk 0:01:57]} 35. Rc1 {[%clk 0:00:07]}  cxd3 {[%clk 0:01:56]} 36. Rd1 {[%clk 0:00:04]}  Kxd7 {[%clk 0:01:55]} 37. Rxd3+ {[%clk 0:00:04]}  Ke7 {[%clk 0:01:56]} 38. Kf2 {[%clk 0:00:05]}  Ne6 {[%clk 0:01:56]} 39. Rc3 {[%clk 0:00:02]}  Ng5 {[%clk 0:01:56]} 40. Rc4 {[%clk 0:00:03]}  Kf7 {[%clk 0:01:54]} 41. h4 {[%clk 0:00:03]}  Ne6 {[%clk 0:01:53]} 42. Kf3 {[%clk 0:00:04]}  h5 {[%clk 0:01:43]} 43. Ra4 {[%clk 0:00:03]}  Nc5 {[%clk 0:01:40]} 44. Ra5 {[%clk 0:00:03]}  Nd3 {[%clk 0:01:39]} 45. Ra7+ {[%clk 0:00:03]}  Kg6 {[%clk 0:01:39]} 46. Ra3 {[%clk 0:00:02]}  Nc5 {[%clk 0:01:36]} 47. Rc3 {[%clk 0:00:03]}  Ne6 {[%clk 0:01:32]} 48. g4 {[%clk 0:00:03]}  hxg4+ {[%clk 0:01:30]} 49. Kxg4 {[%clk 0:00:04]}  Nf8 {[%clk 0:01:11]} 50. Rc6 {[%clk 0:00:03]}  Nd7 {[%clk 0:01:07]} 51. Rc7 {[%clk 0:00:03]}  Nb6 {[%clk 0:01:05]} 52. Rb7 {[%clk 0:00:03]}  Nc4 {[%clk 0:01:05]} 53. h5+ {[%clk 0:00:02]}  Kh6 {[%clk 0:01:04]} 54. Kf3 {[%clk 0:00:01]}  Nd2+ {[%clk 0:01:02]} 55. Kg4 {[%clk 0:00:02]}  Nxe4 {[%clk 0:00:57]} 56. Rc7 {[%clk 0:00:02]}  Nf2+ {[%clk 0:00:44]} 57. Kf3 {[%clk 0:00:02]}  Nd3 {[%clk 0:00:39]} 58. Kg4 {[%clk 0:00:02]}  Nf2+ {[%clk 0:00:39]} 59. Kf3 {[%clk 0:00:02]}  Nd3 {[%clk 0:00:39]} 60. Kg4 {[%clk 0:00:02]}  Nf2+ {[%clk 0:00:40]} 1/2-1/2


[Site "https://www.chess.com"]

[Event "Titled Tuesday Blitz July 13 2021"]
[White "Pelopidass"]
[Black "Zong, Davis"]
[BlackFideId "30903955"]
[WhiteElo "2560"]
[BlackElo "2402"]
[Result "1/2-1/2"]
[Round "06"]
[TimeControl "180+1"]
[Date "2021.07.13"]
[WhiteClock "0:00:27"]
[BlackClock "0:00:27"]

1. e4 {[%clk 0:03:00]}  e5 {[%clk 0:03:00]} 2. Nf3 {[%clk 0:03:00]}  Nc6 {[%clk 0:03:00]} 3. Bb5 {[%clk 0:03:01]}  a6 {[%clk 0:03:00]} 4. Ba4 {[%clk 0:03:01]}  Nf6 {[%clk 0:03:00]} 5. O-O {[%clk 0:03:01]}  Be7 {[%clk 0:03:01]} 6. Bxc6 {[%clk 0:03:01]}  dxc6 {[%clk 0:03:01]} 7. d3 {[%clk 0:03:01]}  Nd7 {[%clk 0:02:59]} 8. Nbd2 {[%clk 0:03:01]}  O-O {[%clk 0:02:58]} 9. Nc4 {[%clk 0:03:02]}  f6 {[%clk 0:02:57]} 10. Nh4 {[%clk 0:03:02]}  c5 {[%clk 0:02:51]} 11. Nf5 {[%clk 0:02:43]}  Nb6 {[%clk 0:02:48]} 12. Nxb6 {[%clk 0:02:41]}  cxb6 {[%clk 0:02:48]} 13. Ne3 {[%clk 0:02:40]}  Be6 {[%clk 0:02:45]} 14. c4 {[%clk 0:02:39]}  b5 {[%clk 0:02:45]} 15. Nd5 {[%clk 0:02:31]}  bxc4 {[%clk 0:02:45]} 16. dxc4 {[%clk 0:02:31]}  b5 {[%clk 0:02:46]} 17. Qc2 {[%clk 0:02:26]}  Rb8 {[%clk 0:02:28]} 18. Rd1 {[%clk 0:02:26]}  Qe8 {[%clk 0:02:21]} 19. Nc7 {[%clk 0:02:12]}  Qf7 {[%clk 0:02:21]} 20. Nxe6 {[%clk 0:02:10]}  Qxe6 {[%clk 0:02:21]} 21. Rd5 {[%clk 0:02:10]}  f5 {[%clk 0:02:17]} 22. exf5 {[%clk 0:02:08]}  Rxf5 {[%clk 0:02:15]} 23. b3 {[%clk 0:01:52]}  Rbf8 {[%clk 0:02:13]} 24. Be3 {[%clk 0:01:52]}  e4 {[%clk 0:01:52]} 25. Rad1 {[%clk 0:01:45]}  Rxd5 {[%clk 0:01:25]} 26. cxd5 {[%clk 0:01:39]}  Qe5 {[%clk 0:01:18]} 27. Bxc5 {[%clk 0:01:33]}  Rc8 {[%clk 0:01:17]} 28. b4 {[%clk 0:01:33]}  e3 {[%clk 0:01:10]} 29. Qe2 {[%clk 0:00:44]}  Bxc5 {[%clk 0:00:57]} 30. bxc5 {[%clk 0:00:43]}  Rxc5 {[%clk 0:00:49]} 31. Qxe3 {[%clk 0:00:37]}  Qxe3 {[%clk 0:00:39]} 32. fxe3 {[%clk 0:00:38]}  Kf8 {[%clk 0:00:35]} 33. Rd2 {[%clk 0:00:35]}  Ke7 {[%clk 0:00:33]} 34. d6+ {[%clk 0:00:33]}  Kd7 {[%clk 0:00:33]} 35. Kf2 {[%clk 0:00:26]}  Rc6 {[%clk 0:00:29]} 36. Ke2 {[%clk 0:00:26]}  Rxd6 {[%clk 0:00:29]} 37. Rc2 {[%clk 0:00:26]}  Rc6 {[%clk 0:00:26]} 38. Rd2+ {[%clk 0:00:26]}  Rd6 {[%clk 0:00:27]} 39. Rc2 {[%clk 0:00:26]}  Rc6 {[%clk 0:00:27]} 40. Rd2+ {[%clk 0:00:27]}  Rd6 {[%clk 0:00:27]} 1/2-1/2


[Site "https://www.chess.com"]

[Event "Titled Tuesday Blitz July 13 2021"]
[White "Petukhov, Dmitry"]
[Black "Gelman, Alexander"]
[WhiteFideId "4142748"]
[BlackFideId "4118316"]
[WhiteElo "2356"]
[BlackElo "2375"]
[Result "0-1"]
[Round "06"]
[TimeControl "180+1"]
[Date "2021.07.13"]
[WhiteClock "0:01:42"]
[BlackClock "0:01:13"]

1. e4 {[%clk 0:03:00]}  c5 {[%clk 0:03:00]} 2. c3 {[%clk 0:03:00]}  e6 {[%clk 0:02:57]} 3. d4 {[%clk 0:02:59]}  d5 {[%clk 0:02:57]} 4. e5 {[%clk 0:02:59]}  Nc6 {[%clk 0:02:57]} 5. Nf3 {[%clk 0:03:00]}  Bd7 {[%clk 0:02:57]} 6. a3 {[%clk 0:03:00]}  f6 {[%clk 0:02:57]} 7. exf6 {[%clk 0:02:56]}  Nxf6 {[%clk 0:02:56]} 8. b4 {[%clk 0:02:57]}  c4 {[%clk 0:02:50]} 9. a4 {[%clk 0:02:56]}  Bd6 {[%clk 0:02:50]} 10. g3 {[%clk 0:02:53]}  O-O {[%clk 0:02:43]} 11. Bg2 {[%clk 0:02:54]}  Be8 {[%clk 0:02:22]} 12. b5 {[%clk 0:02:48]}  Ne7 {[%clk 0:02:13]} 13. Ne5 {[%clk 0:02:47]}  Bh5 {[%clk 0:02:07]} 14. Qc2 {[%clk 0:02:42]}  Bxe5 {[%clk 0:01:55]} 15. dxe5 {[%clk 0:02:43]}  Ng4 {[%clk 0:01:55]} 16. O-O {[%clk 0:02:40]}  Nxe5 {[%clk 0:01:53]} 17. Bf4 {[%clk 0:02:33]}  Rxf4 {[%clk 0:01:42]} 18. gxf4 {[%clk 0:02:34]}  Nf3+ {[%clk 0:01:42]} 19. Kh1 {[%clk 0:02:31]}  Ng6 {[%clk 0:01:41]} 20. Nd2 {[%clk 0:02:30]}  Nfh4 {[%clk 0:01:32]} 21. Rg1 {[%clk 0:02:16]}  Qf6 {[%clk 0:01:31]} 22. Nf1 {[%clk 0:02:03]}  Nxg2 {[%clk 0:01:20]} 23. Kxg2 {[%clk 0:01:42]}  Nxf4+ {[%clk 0:01:13]} 0-1


[Site "https://www.chess.com"]

[Event "Titled Tuesday Blitz July 13 2021"]
[White "Popilski, Gil"]
[Black "Onyshchuk, Volodymyr"]
[WhiteFideId "2809060"]
[BlackFideId "14114038"]
[WhiteElo "2537"]
[BlackElo "2603"]
[Result "0-1"]
[Round "06"]
[TimeControl "180+1"]
[Date "2021.07.13"]
[WhiteClock "0:00:01"]
[BlackClock "0:00:17"]

1. e4 {[%clk 0:03:00]}  d6 {[%clk 0:02:59]} 2. d4 {[%clk 0:02:51]}  Nf6 {[%clk 0:02:59]} 3. Nc3 {[%clk 0:02:47]}  g6 {[%clk 0:02:58]} 4. Be3 {[%clk 0:02:41]}  c6 {[%clk 0:02:57]} 5. a4 {[%clk 0:02:34]}  Nbd7 {[%clk 0:02:53]} 6. Nf3 {[%clk 0:02:28]}  e5 {[%clk 0:02:53]} 7. dxe5 {[%clk 0:02:25]}  dxe5 {[%clk 0:02:52]} 8. Bc4 {[%clk 0:02:25]}  h6 {[%clk 0:02:50]} 9. Qe2 {[%clk 0:02:09]}  Bb4 {[%clk 0:02:35]} 10. Bxf7+ {[%clk 0:02:02]}  Kxf7 {[%clk 0:02:17]} 11. Qc4+ {[%clk 0:02:01]}  Kg7 {[%clk 0:02:17]} 12. Qxb4 {[%clk 0:02:01]}  Re8 {[%clk 0:02:12]} 13. O-O {[%clk 0:01:50]}  Ng4 {[%clk 0:02:10]} 14. Bd2 {[%clk 0:01:40]}  Qb6 {[%clk 0:02:08]} 15. Qa3 {[%clk 0:01:39]}  Qc5 {[%clk 0:01:59]} 16. Qa2 {[%clk 0:01:37]}  Nf8 {[%clk 0:01:53]} 17. h3 {[%clk 0:01:34]}  Be6 {[%clk 0:01:49]} 18. Qa3 {[%clk 0:01:33]}  Qxa3 {[%clk 0:01:45]} 19. Rxa3 {[%clk 0:01:33]}  Nf6 {[%clk 0:01:45]} 20. Nxe5 {[%clk 0:01:33]}  Rad8 {[%clk 0:01:43]} 21. Be3 {[%clk 0:01:30]}  Bc8 {[%clk 0:01:38]} 22. f4 {[%clk 0:01:24]}  Ne6 {[%clk 0:01:25]} 23. Nd3 {[%clk 0:01:01]}  Nd4 {[%clk 0:01:20]} 24. Bxd4 {[%clk 0:01:01]}  Rxd4 {[%clk 0:01:20]} 25. e5 {[%clk 0:00:59]}  Nh5 {[%clk 0:01:20]} 26. g4 {[%clk 0:00:55]}  Ng3 {[%clk 0:01:10]} 27. Re1 {[%clk 0:00:47]}  h5 {[%clk 0:01:05]} 28. Kf2 {[%clk 0:00:42]}  h4 {[%clk 0:01:05]} 29. Ne2 {[%clk 0:00:29]}  Rc4 {[%clk 0:00:59]} 30. Nxg3 {[%clk 0:00:23]}  hxg3+ {[%clk 0:00:58]} 31. Kxg3 {[%clk 0:00:24]}  Rxc2 {[%clk 0:00:58]} 32. Rc3 {[%clk 0:00:21]}  Rd2 {[%clk 0:00:58]} 33. Nc5 {[%clk 0:00:19]}  Rxb2 {[%clk 0:00:56]} 34. Rd3 {[%clk 0:00:15]}  b6 {[%clk 0:00:54]} 35. Ne4 {[%clk 0:00:15]}  Be6 {[%clk 0:00:50]} 36. Nd6 {[%clk 0:00:13]}  Rf8 {[%clk 0:00:48]} 37. Rf3 {[%clk 0:00:11]}  Bd5 {[%clk 0:00:47]} 38. Ne4 {[%clk 0:00:08]}  Rb4 {[%clk 0:00:42]} 39. Rfe3 {[%clk 0:00:08]}  Rxa4 {[%clk 0:00:41]} 40. Nf6 {[%clk 0:00:08]}  Be6 {[%clk 0:00:41]} 41. Rc1 {[%clk 0:00:06]}  c5 {[%clk 0:00:40]} 42. Rd3 {[%clk 0:00:06]}  Rc8 {[%clk 0:00:35]} 43. Rd6 {[%clk 0:00:05]}  Kf7 {[%clk 0:00:35]} 44. Kh4 {[%clk 0:00:05]}  Rxf4 {[%clk 0:00:31]} 45. Kg5 {[%clk 0:00:05]}  Rf3 {[%clk 0:00:23]} 46. Ra1 {[%clk 0:00:05]}  Rc7 {[%clk 0:00:20]} 47. h4 {[%clk 0:00:05]}  Re3 {[%clk 0:00:19]} 48. Rf1 {[%clk 0:00:05]}  Rxe5+ {[%clk 0:00:18]} 49. Kh6 {[%clk 0:00:05]}  Ke7 {[%clk 0:00:18]} 50. Rd2 {[%clk 0:00:05]}  c4 {[%clk 0:00:17]} 51. Kxg6 {[%clk 0:00:04]}  c3 {[%clk 0:00:18]} 52. Rc2 {[%clk 0:00:01]}  Bb3 {[%clk 0:00:18]} 53. Rcc1 {[%clk 0:00:01]}  c2 {[%clk 0:00:18]} 54. g5 {[%clk 0:00:01]}  b5 {[%clk 0:00:18]} 55. h5 {[%clk 0:00:01]}  Rcc5 {[%clk 0:00:17]} 0-1


[Site "https://www.chess.com"]